bitfinex/quotes_ETHUSD_20250603
["timestamp","ask_amount","ask_price","bid_price","bid_amount"]
[1748952694303,1.9442,2604.9,2604.8,8.0]
[1748952694530,5.8832,2604.9,2604.8,8.0]
[1748952700469,3.83916608,2604.8,2604.2,0.37774914]
[1748952700767,3.934,2604.7,2604.3,8.0]
[1748952701064,0.9429,2604.5,2603.3,5.04397784]
[1748952701285,3.84046555,2603.9,2603.1,3.84146804]
[1748952701609,4.9049,2603.8,2603.3,3.84115006]
[1748952703159,0.9429,2603.8,2603.6,8.0]
[1748952703312,0.9429,2603.8,2603.5,11.84092225]
[1748952703514,3.965,2603.7,2603.5,8.0]
[1748952703759,3.965,2603.7,2603.4,3.84105031]
[1748952703760,3.965,2603.7,2603.3,8.0]
[1748952703920,5.22388498,2603.7,2603.2,8.55]
[1748952704117,7.80575812,2603.7,2603.2,8.55]
[1748952706440,7.80575812,2603.7,2603.2,4.39141975]
[1748952706647,3.963,2603.6,2603.4,8.0]
[1748952706958,0.9429,2603.8,2603.6,8.0]
[1748952707263,3.966,2603.7,2603.5,11.84098329]
[1748952707747,3.966,2603.7,2603.5,11.84087891]
[1748952707940,0.9429,2603.8,2603.7,0.55]
[1748952708141,0.9624,2604.1,2603.7,0.55]
[1748952708324,3.965,2604.0,2603.7,0.55]
[1748952709463,3.965,2604.0,2603.7,4.39066513]
[1748952709851,1.82662322,2604.1,2603.8,3.84049749]
[1748952710051,0.9624,2604.1,2603.8,3.8405254]
[1748952710223,0.9624,2604.1,2603.9,0.55]
[1748952710428,3.964,2604.0,2603.9,0.55]
[1748952711327,0.9624,2604.1,2603.9,0.55]
[1748952711578,3.963,2604.0,2603.8,8.55]
[1748952712175,0.9624,2604.1,2603.8,8.55]
[1748952712480,3.962,2604.0,2603.8,8.55]
[1748952712968,0.9624,2604.1,2603.5,11.84094423]
[1748952713138,3.961,2604.0,2603.8,0.55]
[1748952713333,4.83735261,2604.0,2603.7,8.0]
[1748952713549,4.83735261,2604.0,2603.5,3.84090943]
[1748952713550,4.83735261,2604.0,2603.6,0.55]
[1748952714073,8.67760267,2604.0,2603.6,0.55]
[1748952714273,4.83735261,2604.0,2603.6,0.55]
[1748952714592,4.83735261,2604.0,2603.7,8.0]
[1748952714772,4.83735261,2604.0,2603.6,0.55]
[1748952715358,3.96,2603.9,2603.7,8.0]
[1748952715939,3.96,2603.9,2603.6,0.55]
[1748952716139,3.96,2603.9,2603.7,8.0]
[1748952716451,3.96,2603.9,2603.6,0.55]
[1748952716792,3.96,2603.9,2603.7,8.0]
[1748952717636,0.8975,2604.4,2603.9,0.55]
[1748952717843,7.7988034,2604.3,2603.8,0.55]
[1748952718257,7.7988034,2604.3,2603.8,4.39048731]
[1748952719483,0.8975,2604.4,2604.0,3.84014571]
[1748952719865,3.958,2604.3,2604.0,3.84014571]
[1748952720190,0.8975,2604.4,2604.1,4.39008409]
[1748952720484,0.9319,2604.6,2604.1,4.39006653]
[1748952720772,3.957,2604.5,2604.3,3.83979222]
[1748952720977,3.957,2604.4,2604.3,11.83979222]
[1748952721160,3.957,2604.4,2604.3,8.0]
[1748952721538,0.9319,2604.6,2604.4,8.0]
[1748952721738,0.9319,2604.6,2604.2,3.83990246]
[1748952721739,3.957,2604.5,2604.2,3.83990246]
[1748952722051,0.02,2604.9,2604.8,8.55]
[1748952722253,0.02,2604.9,2604.8,12.38906633]
[1748952722994,0.02,2604.9,2604.8,8.0]
[1748952724263,4.73931896,2604.9,2604.8,8.0]
[1748952724790,0.9004,2604.9,2604.8,8.0]
[1748952725488,5.65581663,2604.9,2604.8,8.0]
[1748952725693,0.93649767,2604.9,2604.8,8.0]
[1748952725997,0.02,2604.9,2604.8,11.83906633]
[1748952726297,3.99,2604.9,2604.8,12.38906633]
[1748952726498,0.02,2604.9,2604.8,12.76696181]
[1748952726801,0.02,2604.9,2604.8,8.92789548]
[1748952727477,0.02,2604.9,2604.8,12.76696181]
[1748952727888,0.02,2604.9,2604.8,8.92789548]
[1748952728177,0.02,2604.9,2604.8,8.55]
[1748952728609,0.02,2604.9,2604.8,12.38906633]
[1748952731487,0.02,2604.9,2604.8,12.77256514]
[1748952733719,0.02,2604.9,2604.8,8.0]
[1748952738229,0.8802,2604.9,2604.8,8.0]
[1748952739887,4.71911896,2604.9,2604.8,8.0]
[1748952740352,0.8802,2604.9,2604.8,8.0]
[1748952740721,4.8382,2604.9,2604.8,8.0]
[1748952741380,9.97407053,2604.9,2604.8,8.0]
[1748952741515,3.83925703,2604.7,2604.1,7.30545424]
[1748952741721,3.958,2604.6,2604.2,8.55]
[1748952741954,3.958,2604.6,2604.1,0.38648713]
[1748952741955,0.922,2604.5,2604.1,0.38648713]
[1748952742133,3.958,2604.4,2604.1,0.38648713]
[1748952742464,3.958,2604.4,2603.9,11.84037521]
[1748952742648,3.958,2604.4,2604.0,4.39015361]
[1748952743046,3.958,2604.4,2604.1,8.0]
[1748952743232,3.958,2604.4,2604.0,12.22999413]
[1748952743438,3.958,2604.4,2604.2,8.0]
[1748952743653,3.958,2604.4,2604.2,11.83986179]
[1748952743853,0.8848,2604.8,2604.3,6.75514324]
[1748952744159,3.957,2604.7,2604.3,6.75514324]
[1748952744333,3.957,2604.7,2604.4,8.0]
[1748952745042,3.957,2604.6,2604.4,8.0]
[1748952745528,3.957,2604.6,2604.2,3.83986445]
[1748952745727,8.66447217,2604.6,2604.2,8.55]
[1748952746262,3.83951151,2604.5,2604.2,8.55]
[1748952746431,8.6645609,2604.6,2604.2,0.55]
[1748952746941,8.6645609,2604.6,2604.1,0.55]
[1748952747137,3.8395176,2604.5,2604.1,0.55]
[1748952747341,0.8874,2604.5,2604.1,0.55]
[1748952748463,0.8874,2604.5,2604.0,3.84014352]
[1748952748968,4.72692334,2604.5,2604.0,3.84014352]
[1748952749175,0.8874,2604.5,2604.0,4.22604678]
[1748952749467,4.7269208,2604.5,2604.0,4.22604678]
[1748952749671,6.06605123,2604.5,2604.0,4.22604678]
[1748952750178,2.22653043,2604.5,2604.1,6.75540962]
[1748952750378,0.8874,2604.5,2604.2,3.83993043]
[1748952751764,0.8874,2604.5,2604.1,6.75545819]
[1748952751966,3.953,2604.4,2604.3,6.75516131]
[1748952752779,3.953,2604.4,2604.3,3.46544252]
[1748952753079,0.02,2604.9,2604.5,3.83949124]
[1748952753249,0.02,2604.9,2604.8,6.75450885]
[1748952753431,0.02,2604.9,2604.8,2.91544252]
[1748952754183,3.976,2604.9,2604.8,2.91544252]
[1748952754868,3.976,2604.9,2604.6,6.75480316]
[1748952755062,3.976,2604.9,2604.6,2.91544252]
[1748952755268,3.976,2604.9,2604.6,6.75479547]
[1748952755819,3.976,2604.9,2604.6,2.91544252]
[1748952756617,3.976,2604.9,2604.6,6.7547945]
[1748952757207,0.02,2604.9,2604.6,6.7547945]
[1748952757407,3.973,2604.9,2604.7,3.83913237]
[1748952757619,3.972,2604.9,2604.8,2.91544252]
[1748952758718,0.02,2604.9,2604.8,6.75450885]
[1748952758925,3.971,2604.9,2604.8,2.91544252]
[1748952759324,3.971,2604.9,2604.8,6.75450885]
[1748952759626,3.971,2604.9,2604.8,2.91544252]
[1748952759920,3.971,2604.9,2604.8,6.75450885]
[1748952760127,3.97,2604.9,2604.8,6.75450885]
[1748952760422,3.97,2604.9,2604.8,2.91544252]
[1748952760792,0.02,2604.9,2604.8,2.91544252]
[1748952760986,3.969,2604.9,2604.8,2.91544252]
[1748952762126,3.969,2604.9,2604.8,6.75450885]
[1748952763327,0.02,2604.9,2604.8,6.75450885]
[1748952763516,3.967,2604.9,2604.8,6.75450885]
[1748952764593,0.02,2604.9,2604.8,6.75450885]
[1748952765313,0.02,2604.9,2604.8,2.91544252]
[1748952765715,0.43379576,2605.1,2605.0,4.38877159]
[1748952765910,0.43379576,2605.1,2605.0,7.30421411]
[1748952767322,0.43379576,2605.1,2605.0,15.30421411]
[1748952770439,0.43379576,2605.1,2605.0,8.55]
[1748952770740,1.31389576,2605.1,2605.0,8.0]
[1748952771142,1.31389576,2605.1,2604.8,3.83906083]
[1748952771317,1.31389576,2605.1,2604.9,3.83890064]
[1748952771646,0.43379576,2605.1,2605.0,3.83877159]
[1748952772159,0.43379576,2605.1,2605.0,11.83877159]
[1748952772306,0.43379576,2605.1,2605.0,12.38877159]
[1748952776453,0.43379576,2605.1,2605.0,15.30421411]
[1748952780257,0.43379576,2605.1,2605.0,8.0]
[1748952780463,0.43379576,2605.1,2604.3,3.83967195]
[1748952780684,3.946,2605.0,2604.8,3.83905018]
[1748952781477,0.8435,2604.9,2603.9,1.038]
[1748952781632,0.8435,2604.9,2604.4,3.8395911]
[1748952782037,4.68250019,2604.9,2604.4,3.83965355]
[1748952782472,4.68250019,2604.9,2604.3,12.38972617]
[1748952782683,2.18109132,2604.8,2604.3,11.83972617]
[1748952782883,0.8819,2604.6,2604.2,14.75532183]
[1748952783041,0.8819,2604.6,2604.1,3.83996859]
[1748952783472,0.8819,2604.6,2604.2,8.0]
[1748952783674,4.72126501,2604.6,2604.2,8.0]
[1748952783982,6.10181898,2604.6,2604.2,8.0]
[1748952784341,2.26245397,2604.6,2604.2,8.0]
[1748952784649,2.26245397,2604.6,2604.1,3.83996859]
[1748952786988,3.945,2604.5,2604.2,2.91544252]
[1748952787185,3.945,2604.5,2604.1,11.84005978]
[1748952787186,2.26245397,2604.6,2604.4,2.91544252]
[1748952787357,3.945,2604.5,2604.4,2.91544252]
[1748952788290,0.8819,2604.6,2604.4,2.91544252]
[1748952788494,0.8819,2604.6,2604.4,6.75503848]
[1748952788667,3.944,2604.5,2604.4,2.91544252]
[1748952788862,3.944,2604.5,2604.3,3.83974036]
[1748952789174,3.944,2604.5,2604.3,2.91544252]
[1748952789355,3.944,2604.5,2604.3,6.75523455]
[1748952789984,0.8819,2604.6,2604.4,3.83964672]
[1748952790183,0.8819,2604.6,2604.5,2.91544252]
[1748952790352,4.8269,2604.6,2604.5,2.91544252]
[1748952791545,0.8819,2604.6,2604.5,2.91544252]
[1748952791884,4.8249,2604.6,2604.5,2.91544252]
[1748952792088,0.8629,2604.9,2604.6,3.8392682]
[1748952792290,4.8059,2604.9,2604.8,2.91544252]
[1748952793083,0.8629,2604.9,2604.8,2.91544252]
[1748952793284,4.8079,2604.9,2604.8,2.91544252]
[1748952793686,4.8069,2604.9,2604.8,2.91544252]
[1748952795279,4.8059,2604.9,2604.8,2.91544252]
[1748952795694,3.943,2604.9,2604.8,2.91544252]
[1748952795889,3.943,2604.9,2604.8,6.75450885]
[1748952796089,3.942,2604.9,2604.8,2.91544252]
[1748952796265,3.942,2605.0,2604.8,6.75450885]
[1748952796467,3.942,2605.0,2604.8,2.91544252]
[1748952796666,3.942,2605.0,2604.8,6.75437796]
[1748952796966,3.942,2605.0,2604.9,3.83891896]
[1748952797803,0.43379576,2605.1,2604.9,3.83891896]
[1748952798005,0.43379576,2605.1,2605.0,6.75421411]
[1748952798210,4.37479576,2605.1,2605.0,6.75421411]
[1748952798381,0.43379576,2605.1,2605.0,6.75421411]
[1748952798701,0.43379576,2605.1,2605.0,14.75421411]
[1748952799535,0.43379576,2605.1,2605.0,15.30421411]
[1748952806627,0.43379576,2605.1,2605.0,10.91544252]
[1748952806995,0.43379576,2605.1,2605.0,14.75421411]
[1748952808493,0.43379576,2605.1,2605.0,15.30421411]
[1748952809192,0.43379576,2605.1,2605.0,11.46544252]
[1748952809393,0.43379576,2605.1,2605.0,15.30421411]
[1748952811231,0.43379576,2605.1,2605.0,14.75421411]
[1748952811431,0.43379576,2605.1,2605.0,8.0]
[1748952811616,0.87067534,2605.1,2605.0,8.0]
[1748952811810,0.8807,2605.0,2604.8,6.75448639]
[1748952811995,0.8807,2605.0,2604.6,14.75471813]
[1748952812201,3.932,2604.9,2604.6,6.75471813]
[1748952812720,3.932,2604.9,2604.7,3.83920536]
[1748952812898,3.932,2604.9,2604.8,6.75450885]
[1748952813313,3.932,2604.9,2604.8,2.91544252]
[1748952817526,0.8807,2605.0,2604.8,6.75440685]
[1748952817724,3.929,2604.9,2604.8,2.91544252]
[1748952817937,3.929,2604.9,2604.8,6.75450885]
[1748952818342,3.929,2604.9,2604.8,2.91544252]
[1748952820220,3.929,2604.9,2604.6,2.91544252]
[1748952820221,4.45334958,2604.9,2604.6,2.91544252]
[1748952820744,4.45334958,2604.9,2604.5,11.83941383]
[1748952821445,4.45334958,2604.9,2604.6,2.91544252]
[1748952821750,4.45334958,2604.9,2604.6,6.75479533]
[1748952823725,4.45334958,2604.9,2604.7,3.83921122]
[1748952823923,4.45334958,2604.9,2604.6,6.75471316]
[1748952824825,0.8807,2605.0,2604.8,2.91544252]
[1748952825028,3.925,2604.9,2604.8,2.91544252]
[1748952825351,0.8807,2605.0,2604.8,6.75450004]
[1748952825538,3.925,2604.9,2604.8,2.91544252]
[1748952826556,0.43379576,2605.1,2604.8,2.91544252]
[1748952826760,0.9480171,2605.1,2604.8,2.91544252]
[1748952827056,0.43379576,2605.1,2605.0,14.75421411]
[1748952836192,0.43379576,2605.1,2605.0,8.0]
[1748952836582,0.43379576,2605.1,2605.0,11.83877159]
[1748952836790,0.43379576,2605.1,2605.0,8.0]
[1748952837290,1.33729576,2605.1,2605.0,8.0]
[1748952838564,4.35279576,2605.1,2605.0,11.83877159]
[1748952838873,4.35279576,2605.1,2605.0,14.75421411]
[1748952840602,4.35279576,2605.1,2605.0,10.91544252]
[1748952841298,5.23439576,2605.1,2605.0,8.0]
[1748952842086,1.31539576,2605.1,2605.0,11.83877159]
[1748952842391,4.35079576,2605.1,2605.0,14.75421411]
[1748952842595,4.35079576,2605.1,2605.0,6.49568737]
[1748952843811,0.43379576,2605.1,2605.0,6.49568737]
[1748952845923,1.33939576,2605.1,2604.8,2.91544252]
[1748952846219,0.43379576,2605.1,2604.8,3.8390425]
[1748952846391,0.43379576,2605.1,2604.9,6.75424716]
[1748952846593,0.43379576,2605.1,2605.0,3.83877159]
[1748952850813,0.02,2605.9,2605.1,0.55]
[1748952851021,0.02,2605.9,2605.8,2.91544252]
[1748952851227,0.02,2605.9,2605.8,6.75303558]
[1748952851791,0.02,2605.9,2605.8,7.12842137]
[1748952853325,0.02,2605.9,2605.8,0.37538579]
[1748952853635,0.02,2605.9,2605.7,3.83764251]
[1748952853801,0.02,2605.9,2605.8,3.83759306]
[1748952854127,0.02,2605.9,2605.8,2.91544252]
[1748952855134,0.02,2605.9,2605.8,6.75303558]
[1748952855635,0.02,2605.9,2605.8,7.14461522]
[1748952858812,0.02,2605.9,2605.8,3.30702216]
[1748952859212,0.02,2605.9,2605.8,7.14461522]
[1748952859408,0.02,2605.9,2605.8,7.69461522]
[1748952860328,0.02,2605.9,2605.8,15.69461522]
[1748952862630,0.02,2605.9,2605.8,11.30702216]
[1748952862830,0.02,2605.9,2605.8,8.39157964]
[1748952863833,3.933,2605.9,2605.8,8.39157964]
[1748952864038,4.70737806,2605.8,2605.0,3.83867611]
[1748952864221,3.83781668,2605.7,2605.1,3.83853112]
[1748952864420,3.916,2605.6,2605.3,8.0]
[1748952864619,0.8595,2605.5,2605.2,8.0]
[1748952864822,1.72082658,2605.5,2605.1,0.37735197]
[1748952865023,5.55892948,2605.5,2604.8,6.75448944]
[1748952865352,5.55892948,2605.5,2605.0,10.91544252]
[1748952865650,5.55892948,2605.5,2605.0,14.75421392]
[1748952865832,0.8595,2605.5,2605.2,6.75383988]
[1748952866011,3.915,2605.4,2605.2,14.75383988]
[1748952866647,3.915,2605.4,2605.3,8.0]
[1748952867641,3.915,2605.4,2605.3,3.83832955]
[1748952867835,3.914,2605.4,2605.3,8.0]
[1748952868033,3.914,2605.4,2605.3,11.83832955]
[1748952868260,3.915,2605.5,2605.3,8.0]
[1748952868540,3.915,2605.5,2605.4,6.75362475]
[1748952870127,3.916,2605.6,2605.5,3.83798631]
[1748952870550,0.8761,2605.7,2605.5,3.83798631]
[1748952870767,0.8761,2605.7,2605.6,6.75333014]
[1748952870933,4.7911,2605.7,2605.6,2.91544252]
[1748952871250,3.915,2605.7,2605.6,2.91544252]
[1748952871455,3.915,2605.7,2605.6,14.75328964]
[1748952871652,0.02,2605.9,2605.8,3.83759306]
[1748952871858,3.915,2605.8,2605.6,10.91544252]
[1748952872064,0.02,2605.9,2605.7,3.83762776]
[1748952872363,3.915,2605.8,2605.7,3.83762776]
[1748952873562,3.915,2605.8,2605.6,14.75332536]
[1748952873770,0.02,2605.9,2605.6,14.75332536]
[1748952874063,3.934,2605.9,2605.8,6.75303558]
[1748952874378,0.02,2605.9,2605.8,7.30303558]
[1748952877925,0.02,2605.9,2605.8,2.91544252]
[1748952878621,0.02,2605.9,2605.8,6.75303558]
[1748952879005,0.02,2605.9,2605.8,2.91544252]
[1748952879925,0.02,2605.9,2605.1,3.8384843]
[1748952879926,0.02,2605.9,2605.4,2.91544252]
[1748952880417,3.913,2605.8,2605.4,6.7535638]
[1748952880933,0.8302,2605.7,2605.3,11.83824478]
[1748952881133,0.8302,2605.7,2605.1,3.83858296]
[1748952881307,0.8302,2605.7,2605.3,8.0]
[1748952883031,0.8302,2605.7,2605.3,3.83831947]
[1748952883725,0.8302,2605.7,2605.4,8.0]
[1748952884025,0.8302,2605.7,2605.4,11.83803964]
[1748952884225,3.913,2605.6,2605.4,8.0]
[1748952884591,3.913,2605.6,2605.2,3.83838142]
[1748952884820,4.77108563,2605.6,2605.3,8.0]
[1748952886125,4.77108563,2605.6,2605.3,14.75375439]
[1748952886427,0.8302,2605.7,2605.3,10.91544252]
[1748952886632,3.912,2605.5,2605.4,3.83811128]
[1748952886997,0.8302,2605.7,2605.4,3.83811128]
[1748952887328,3.911,2605.6,2605.4,3.83811128]
[1748952887533,3.911,2605.6,2605.3,14.75372021]
[1748952888931,3.911,2605.6,2605.4,3.83817581]
[1748952889294,3.911,2605.6,2605.3,10.91544252]
[1748952889711,3.911,2605.6,2605.3,14.75370351]
[1748952889919,3.911,2605.6,2605.3,10.91544252]
[1748952890119,3.911,2605.6,2605.3,14.75364461]
[1748952890907,3.911,2605.6,2605.3,10.91544252]
[1748952891110,3.911,2605.6,2605.4,3.83814786]
[1748952892129,3.909,2605.5,2605.4,3.83805223]
[1748952892840,0.8302,2605.7,2605.5,3.83801515]
[1748952892993,3.908,2605.6,2605.5,3.83801515]
[1748952893941,3.908,2605.6,2605.4,3.83810778]
[1748952894143,0.02,2605.9,2605.4,3.83810778]
[1748952894144,0.02,2605.9,2605.5,2.91544252]
[1748952894343,0.02,2605.9,2605.7,2.91544252]
[1748952894839,0.02,2605.9,2605.7,6.75317597]
[1748952895056,2.93544252,2606.9,2605.8,16.39344252]
[1748952895057,0.02,2606.9,2605.8,16.39344252]
[1748952895219,0.02,2606.9,2606.8,2.91544252]
[1748952895741,0.02,2606.9,2606.8,6.75156343]
[1748952898223,0.02,2606.9,2606.8,3.83612091]
[1748952898419,0.02,2606.9,2606.8,6.75156343]
[1748952899040,0.02,2606.9,2606.8,2.91544252]
[1748952899416,0.02,2606.9,2606.8,6.75156343]
[1748952900552,0.02,2606.9,2606.6,6.75178025]
[1748952900713,0.02,2606.9,2606.0,1.014]
[1748952900917,3.83628993,2606.7,2606.1,3.83715129]
[1748952901116,0.898,2606.8,2605.7,4.21779972]
[1748952901117,0.898,2606.8,2605.9,3.83739655]
[1748952901465,0.8476,2606.4,2605.9,8.0]
[1748952901624,0.8476,2606.4,2606.1,2.91544252]
[1748952902762,0.8476,2606.4,2605.9,10.91544252]
[1748952902763,4.68441109,2606.4,2605.9,10.91544252]
[1748952902938,4.68441109,2606.4,2605.9,14.75285883]
[1748952903334,0.8476,2606.4,2605.9,11.83741631]
[1748952903670,0.8476,2606.4,2606.0,3.83728395]
[1748952904341,0.8476,2606.4,2606.0,3.83729854]
[1748952905024,0.8476,2606.4,2606.1,8.0]
[1748952905982,0.8476,2606.4,2606.2,3.83700234]
[1748952906290,0.8476,2606.4,2606.1,8.0]
[1748952908302,0.8476,2606.4,2606.1,11.83712051]
[1748952908760,0.8476,2606.4,2606.1,8.0]
[1748952909089,0.8476,2606.4,2606.1,3.83714506]
[1748952909592,0.8476,2606.4,2606.1,8.0]
[1748952909886,0.8705,2606.8,2606.3,3.83685684]
[1748952910084,0.8705,2606.8,2606.4,8.0]
[1748952910287,3.961,2606.7,2606.4,3.83670102]
[1748952910442,4.8305,2606.8,2606.4,3.83660092]
[1748952912387,0.8705,2606.8,2606.5,3.83645174]
[1748952912547,3.958,2606.7,2606.5,3.83645174]
[1748952912743,0.8705,2606.8,2606.5,3.83645174]
[1748952913092,0.02,2606.9,2606.6,3.83635151]
[1748952913291,0.02,2606.9,2606.7,3.83618537]
[1748952914392,0.02,2606.9,2606.6,11.83626998]
[1748952914601,0.02,2606.9,2606.7,3.83619011]
[1748952914985,0.02,2606.9,2606.6,8.0]
[1748952915294,0.02,2606.9,2606.8,3.83612091]
[1748952915493,0.02,2606.9,2606.7,3.83619849]
[1748952915865,0.02,2606.9,2606.7,3.83623934]
[1748952916266,0.02,2606.9,2606.8,3.83612091]
[1748952917663,0.8841,2607.8,2607.0,10.0]
[1748952918008,3.83487287,2607.7,2607.2,0.55]
[1748952918179,4.71882946,2607.8,2607.2,12.38540829]
[1748952918364,8.72384498,2607.8,2606.7,8.0]
[1748952918565,8.72384498,2607.8,2606.8,0.55]
[1748952918566,3.83532018,2607.4,2606.8,0.55]
[1748952918801,4.011,2607.4,2606.7,3.83626807]
[1748952919101,7.84631266,2607.4,2606.9,8.0]
[1748952919302,7.84631018,2607.4,2606.9,8.0]
[1748952919634,4.011,2607.4,2607.0,3.83575954]
[1748952919765,0.8869,2607.5,2607.0,3.83575954]
[1748952919970,4.9191,2607.8,2607.0,18.3156571]
[1748952920304,3.83487708,2607.7,2607.2,8.0]
[1748952920469,8.75378033,2607.8,2607.2,11.83551491]
[1748952921098,3.83483054,2607.7,2607.2,8.0]
[1748952921392,3.83486999,2607.7,2607.2,8.0]
[1748952921594,3.83496767,2607.6,2607.2,8.0]
[1748952921781,3.83510107,2607.5,2607.2,8.0]
[1748952922117,3.83548925,2607.3,2606.7,3.83625729]
[1748952922318,3.83548925,2607.3,2606.8,8.0]
[1748952922486,3.83548925,2607.3,2606.8,11.83611482]
[1748952922681,3.83548925,2607.3,2606.8,8.0]
[1748952923630,3.83548925,2607.3,2606.3,9.76677184]
[1748952923631,4.015,2607.3,2606.1,5.92993434]
[1748952923793,3.83575913,2607.1,2606.5,3.83645039]
[1748952923990,3.83575913,2607.1,2606.6,8.0]
[1748952924194,3.83575913,2607.1,2606.5,3.83650267]
[1748952924410,3.83575913,2607.1,2606.5,12.38649257]
[1748952924610,3.83575913,2607.1,2606.6,3.83641516]
[1748952924937,5.004384,2607.1,2606.6,3.83641516]
[1748952925234,0.9084,2606.9,2606.5,8.0]
[1748952925634,0.9084,2606.9,2606.5,11.8365466]
[1748952926131,0.9084,2606.9,2606.5,3.8365466]
[1748952926432,0.9084,2606.9,2606.5,3.83654835]
[1748952926933,0.9084,2606.9,2606.4,6.74732527]
[1748952927154,4.74439372,2606.9,2606.4,2.91066241]
[1748952927796,4.74439372,2606.9,2606.4,6.74734619]
[1748952928045,0.9084,2606.9,2606.4,6.74734619]
[1748952928956,0.9084,2606.9,2606.5,3.83652031]
[1748952929139,0.9084,2606.9,2606.4,6.74726272]
[1748952929538,0.9084,2606.9,2606.5,3.83654614]
[1748952930213,1.49969512,2606.9,2606.5,3.83654614]
[1748952930756,1.49969512,2606.9,2606.4,6.74729156]
[1748952931266,1.49969512,2606.9,2606.5,3.83654876]
[1748952931861,1.49969512,2606.9,2606.5,3.83655826]
[1748952933063,1.49969512,2606.9,2606.6,2.91066241]
[1748952933450,0.9084,2606.9,2606.6,2.91066241]
[1748952933650,0.9084,2606.9,2606.6,6.74705014]
[1748952933964,7.93,2607.7,2606.8,6.74675016]
[1748952934148,4.74951397,2607.5,2607.1,2.91066241]
[1748952934322,0.9144,2607.5,2606.7,2.91066241]
[1748952934523,4.003,2607.6,2606.5,8.0]
[1748952934524,0.8667,2607.0,2606.6,8.0]
[1748952934731,4.70254657,2607.0,2606.6,8.0]
[1748952934963,4.70254657,2607.0,2606.4,3.83663588]
[1748952935262,4.70254657,2607.0,2606.4,11.83663588]
[1748952935449,4.70254657,2607.0,2606.5,3.83650938]
[1748952935845,5.95655904,2607.0,2606.4,8.0]
[1748952936251,5.95655904,2607.0,2606.5,3.83655351]
[1748952936954,5.95655904,2607.0,2606.5,6.74721592]
[1748952937261,5.95655904,2607.0,2606.5,3.83655351]
[1748952937427,5.95655904,2607.0,2606.5,3.83650145]
[1748952938068,5.95655904,2607.0,2606.4,11.83663007]
[1748952938227,5.95655904,2607.0,2606.5,3.83655791]
[1748952939127,4.81521822,2606.9,2606.4,11.83663439]
[1748952939329,8.73262585,2606.8,2606.4,8.0]
[1748952939527,8.73262585,2606.8,2606.3,11.83683523]
[1748952941661,8.73262585,2606.8,2606.3,3.83683622]
[1748952941850,10.08741188,2606.8,2606.3,3.83683622]
[1748952942572,6.25128603,2606.8,2606.1,3.83709902]
[1748952942741,4.8965,2606.8,2606.2,11.83688986]
[1748952942946,8.73272963,2606.8,2606.3,3.83685378]
[1748952943143,8.73272963,2606.8,2605.8,0.49968774]
[1748952943144,3.996,2606.8,2605.8,0.49968774]
[1748952943372,3.83693439,2606.3,2605.8,0.49968774]
[1748952943590,7.82701091,2606.2,2605.8,0.49968774]
[1748952943789,0.9005,2606.1,2605.7,0.38014183]
[1748952944083,4.73771297,2606.1,2605.7,8.0]
[1748952945256,0.9005,2606.1,2605.7,11.83773801]
[1748952945476,3.83664364,2606.5,2605.9,3.83730608]
[1748952945789,3.988,2606.2,2605.9,3.83744579]
[1748952945960,3.988,2606.2,2605.8,5.92719552]
[1748952946164,7.82502725,2606.2,2605.7,12.22609435]
[1748952946389,7.82502725,2606.2,2605.7,8.38844105]
[1748952946390,4.71192425,2606.1,2605.7,8.38844105]
[1748952946691,4.71192425,2606.1,2605.7,12.22611849]
[1748952946692,0.8747,2606.1,2605.7,12.22611849]
[1748952946877,3.987,2606.1,2605.8,3.8375297]
[1748952947250,3.987,2606.1,2605.8,3.83759306]
[1748952947455,3.987,2606.1,2605.7,12.22612131]
[1748952947871,3.987,2606.1,2605.8,3.83750702]
[1748952948158,0.8747,2606.3,2605.9,3.8374148]
[1748952948382,3.985,2606.2,2605.8,3.83749658]
[1748952949967,3.985,2606.2,2605.7,12.2261087]
[1748952950495,3.985,2606.2,2605.8,3.83757995]
[1748952950681,5.23832751,2606.2,2605.8,3.83757995]
[1748952950988,1.25332751,2606.2,2605.8,3.83757995]
[1748952951193,3.982,2606.2,2605.8,3.83757995]
[1748952952992,7.81901921,2606.2,2605.7,12.22609499]
[1748952953192,3.98,2606.2,2605.7,12.22609499]
[1748952953398,3.98,2606.2,2605.9,3.83742936]
[1748952953896,3.98,2606.2,2605.7,8.38844105]
[1748952954099,4.66861757,2606.0,2605.7,8.38844105]
[1748952954595,0.8313,2606.0,2605.7,12.22617017]
[1748952954796,4.66862972,2606.0,2605.7,8.38844105]
[1748952954984,0.8313,2606.0,2605.7,8.38844105]
[1748952955381,3.83765429,2605.8,2605.2,0.39986192]
[1748952955564,0.8281,2605.7,2605.4,8.0]
[1748952955759,2.07662429,2605.7,2605.2,0.59189259]
[1748952955972,3.982,2605.6,2605.2,0.20004842]
[1748952956272,3.982,2605.6,2605.3,11.83829556]
[1748952956473,4.8081,2605.7,2605.2,0.20004842]
[1748952956776,4.8081,2605.7,2605.3,3.83825354]
[1748952958289,4.8081,2605.7,2605.2,0.57736423]
[1748952958290,8.64584771,2605.7,2605.2,4.41578156]
[1748952959098,3.83832955,2605.3,2605.2,0.20004842]
[1748952959285,8.64232955,2605.3,2605.1,0.02]
[1748952960094,4.804,2605.3,2605.1,0.02]
[1748952960461,0.826,2605.3,2605.1,0.02]
[1748952960898,3.976,2605.5,2605.2,2.91459491]
[1748952961102,0.8539,2605.7,2605.2,2.91459491]
[1748952961309,3.976,2605.5,2605.1,3.83856107]
[1748952961508,3.976,2605.5,2604.9,9.77182824]
[1748952961509,7.81404391,2605.5,2605.0,11.83870661]
[1748952962371,3.976,2605.5,2605.1,3.83855261]
[1748952962570,3.976,2605.5,2605.2,3.83846576]
[1748952962802,3.974,2605.6,2605.1,3.83862423]